fUSD/lending_fUSD_20240524
["ID","MTS","AMOUNT","RATE_DAILY","PERIOD"]
[327895255,1716585049120,-2957.215,0.0003327,2]
[327895256,1716585049129,-168.53006914,0.00033368,2]
[327895259,1716585049139,-189.02310332,0.00033368,6]
[327895260,1716585049149,-293.758931,0.00033388,7]
[327895262,1716585049158,-156.200023,0.00033388,7]
[327895264,1716585049168,-151.73,0.00033396,2]
[327895267,1716585049177,-973.0,0.000334,18]
[327895269,1716585049187,-486.0,0.000334,18]
[327895271,1716585049196,-344.0,0.000334,6]
[327895273,1716585049205,-193.50479954,0.00033413,2]
[327895275,1716585049214,-3206.20012394,0.00033413,2]
[327895276,1716585049224,-843.83,0.00033424,5]
[327895278,1716585049233,-500.0,0.00033424,5]
[327895280,1716585049243,-500.0,0.00033424,5]
[327895283,1716585049253,-500.0,0.00033424,5]
[327895285,1716585049264,-508.34,0.00033424,5]
[327895286,1716585049273,-500.0,0.00033424,5]
[327895289,1716585049283,-500.0,0.00033424,5]
[327895291,1716585049294,-636.37,0.00033424,5]
[327895293,1716585049305,-966.92,0.00033424,5]
[327895295,1716585049314,-500.0,0.00033424,5]
[327895297,1716585049324,-1432.4,0.00033424,5]
[327895298,1716585049333,-500.0,0.00033424,5]
[327895301,1716585049343,-500.0,0.00033424,5]
[327895302,1716585049353,-500.0,0.00033424,5]
[327895305,1716585049363,-500.0,0.00033424,5]
[327895307,1716585049373,-659.4,0.00033424,5]
[327895309,1716585049385,-500.0,0.00033424,5]
[327895311,1716585049395,-500.0,0.00033424,5]
[327895313,1716585049405,-500.0,0.00033424,5]
[327895315,1716585049416,-500.0,0.00033424,5]
[327895317,1716585049426,-1659.19,0.00033424,5]
[327895319,1716585049436,-500.0,0.00033424,5]
[327895320,1716585049447,-500.0,0.00033424,5]
[327895322,1716585049456,-500.0,0.00033424,5]
[327895325,1716585049467,-1994.19688468,0.00033443,5]
[327895327,1716585049476,-173.052505,0.00033448,38]
[327895329,1716585049488,-7373.28,0.00033461,5]
[327895330,1716585049498,-10130.80596546,0.00033467,15]
[327895333,1716585049511,-29917.45886401,0.00033467,15]
[327895335,1716585049523,-5221.52060909,0.00033467,15]
[327895339,1716585049551,-364.88498277,0.00033467,15]
[327895344,1716585049584,-748.95007431,0.00033467,15]
[327895531,1716585274195,166.32,0.00030624,120]
[327895579,1716586232316,-489.24399676,0.00012863,2]
[327895580,1716586232326,-155.0,0.00012864,2]
[327895581,1716586232336,-290.29465688,0.00012867,2]
[327895582,1716586232347,-161.90398021,0.00012867,2]
[327895583,1716586232356,-183.09601979,0.000129,2]
[327895584,1716586232375,-2058.0,0.000129,2]
[327895585,1716586232441,-27702.1745,0.000129,2]
[327895586,1716586232452,-281.19172138,0.000129,2]
[327895589,1716586232718,-1036.78575,0.000129,2]
[327895591,1716586232730,-3462.50905,0.000129,2]
[327895593,1716586232745,-2825.61467163,0.000129,2]
[327895596,1716586232757,-1729.65438599,0.000129,2]
[327895598,1716586232768,-5608.49045464,0.000129,2]
[327895600,1716586232779,-337.59402767,0.000129,2]
[327895606,1716586238296,-1517.50982453,0.000129,2]
[327895608,1716586238308,-12521.27968062,0.000129,2]
[327895610,1716586238378,-2695.13111375,0.000129,2]
[327895611,1716586238388,-1386.55437292,0.0001338,2]
[327895612,1716586238398,-250.0,0.00013381,2]
[327895613,1716586238408,-150.88,0.00013973,2]
[327895614,1716586238419,-1211.54065397,0.00017256,2]
[327895615,1716586238428,-155.0,0.00017258,2]
[327895616,1716586238442,-402.08776905,0.00017259,2]
[327895617,1716586238452,-499.99,0.00017808,2]
[327895618,1716586238461,-176.55385031,0.000192,2]
[327895619,1716586238488,-479.23585153,0.000192,2]
[327895620,1716586238501,-3226.84900729,0.000192,2]
[327895621,1716586238511,-2206.0,0.000211,3]
[327895622,1716586238521,-222.42,0.00021918,2]
[327895623,1716586238531,-175.15,0.00023331,2]
[327895624,1716586238541,-161.69,0.0002711,2]
[327895625,1716586238551,-155.0,0.00028,2]
[327895626,1716586238561,-500.0,0.00028102,2]
[327895627,1716586238572,-1000.0,0.00028861,2]
[327895628,1716586238583,-407.7,0.00029008,2]
[327895629,1716586238594,-500.0,0.00029198,2]
[327895630,1716586238604,-250.0,0.00029362,2]
[327895631,1716586238613,-161.69,0.00029374,2]
[327895632,1716586238623,-250.0,0.00029541,2]
[327895633,1716586238633,-922.07,0.00029552,2]
[327895634,1716586238643,-3501.39759098,0.00030012,4]
[327895635,1716586238653,-152.65,0.0003009,2]
[327895636,1716586238662,-11.18340173,0.00030232,5]
[327895638,1716586238674,-1978.40158812,0.00030232,5]
[327895641,1716586238686,-505.97178383,0.00030232,5]
[327895643,1716586238698,-1730.9292,0.00030232,5]
[327895647,1716586238730,-586.27968751,0.00030232,5]
[327895649,1716586238745,-297.7266648,0.00030232,5]
[327895651,1716586238756,-1760.68708321,0.00030232,5]
[327895653,1716586238770,-335.5605908,0.00030232,5]
[327895656,1716586238780,-1534.40322161,0.00030232,5]
[327895658,1716586238794,-5709.56677839,0.00030232,5]
[327895659,1716586238804,-7374.13,0.00030232,5]
[327895661,1716586238816,-5760.47130775,0.00030232,5]
[327896212,1716586243978,-825.80256656,0.000211,3]
[327896227,1716586244108,-1422.19743344,0.000211,3]
[327896229,1716586244118,-1583.76869225,0.00030232,5]
[327896231,1716586244128,-7478.28,0.00030232,5]
[327896233,1716586244138,-500.0,0.00030294,10]
[327896237,1716586244148,-152.0,0.0003126,3]
[327896240,1716586244157,-500.0,0.0003139,10]
[327896243,1716586244167,-562.55,0.00031506,5]
[327896246,1716586244176,-150.88,0.00031546,2]
[327896248,1716586244185,-161.69,0.00031638,2]
[327896250,1716586244195,-407.7,0.00031747,2]
[327896252,1716586244204,-562.55,0.0003178,5]
[327896254,1716586244213,-155.0,0.00032,4]
[327896256,1716586244222,-562.55,0.00032054,5]
[327896257,1716586244231,-159.81237792,0.00032143,7]
[327896261,1716586244242,-562.55,0.00032328,5]
[327896265,1716586244252,-500.0,0.00032468,2]
[327896268,1716586244261,-500.0,0.00032468,2]
[327896271,1716586244272,-500.0,0.00032468,2]
[327896273,1716586244281,-500.0,0.00032468,2]
[327896275,1716586244291,-500.0,0.00032468,2]
[327896278,1716586244300,-500.0,0.00032468,2]
[327896281,1716586244309,-500.0,0.00032468,2]
[327896284,1716586244318,-500.0,0.00032468,2]
[327896286,1716586244327,-500.0,0.00032468,2]
[327896289,1716586244337,-500.0,0.00032468,2]
[327896292,1716586244346,-500.0,0.00032468,2]
[327896295,1716586244355,-500.0,0.00032468,2]
[327896298,1716586244364,-500.0,0.00032468,2]
[327896301,1716586244374,-500.0,0.00032468,2]
[327896304,1716586244383,-500.0,0.00032468,2]
[327896307,1716586244393,-500.0,0.00032468,2]
[327896310,1716586244402,-500.0,0.00032468,2]
[327896313,1716586244411,-500.0,0.00032468,2]
[327896316,1716586244421,-500.0,0.00032468,2]
[327896319,1716586244431,-500.0,0.00032468,2]
[327896322,1716586244441,-500.0,0.00032468,2]
[327896325,1716586244450,-500.0,0.00032468,2]
[327896327,1716586244460,-500.0,0.00032468,2]
[327896329,1716586244469,-1000.0,0.00032468,2]
[327896331,1716586244478,-500.0,0.00032486,10]
[327896334,1716586244487,-172.60666668,0.00032502,2]
[327896337,1716586244497,-562.55,0.00032602,5]
[327896340,1716586244507,-180.0,0.00032867,2]
[327896343,1716586244517,-562.55,0.00032876,5]
[327896346,1716586244526,-13196.99077039,0.000329,30]
[327896349,1716586244535,-2500.0,0.00032949,2]
[327896351,1716586244546,-155.0,0.00033,4]
[327896353,1716586244557,-500.0,0.00033048,5]
[327896355,1716586244566,-500.0,0.00033048,5]
[327896357,1716586244576,-500.0,0.00033048,5]
[327896359,1716586244586,-500.0,0.00033048,5]
[327896361,1716586244595,-954.93,0.00033048,5]
[327896363,1716586244604,-500.0,0.00033048,5]
[327896365,1716586244614,-46097.4086,0.00033049,2]
[327896367,1716586244624,-542.77998672,0.00033078,3]
[327896369,1716586244635,-562.55,0.0003315,5]
[327896371,1716586244644,-222.42,0.00033151,120]
[327896373,1716586244654,-1566.72319261,0.00033202,2]
[327896375,1716586244663,-380.70037141,0.00033317,2]
[327896377,1716586244673,-500.0,0.00033322,5]
[327896379,1716586244682,-500.0,0.00033322,5]
[327896381,1716586244691,-500.0,0.00033322,5]
[327896383,1716586244701,-500.0,0.00033322,5]
[327896385,1716586244710,-954.93,0.00033322,5]
[327896387,1716586244720,-500.0,0.00033322,5]
[327896389,1716586244730,-328.30888772,0.00033359,2]
[327896391,1716586244740,-668.7209518,0.00033359,2]
[327896393,1716586244755,-213.5844,0.00033365,2]
[327896395,1716586244765,-982.4951,0.00033366,2]
[327896398,1716586244775,-166.18307376,0.00033366,5]
[327896400,1716586244787,-455.41413569,0.00033398,5]
[327896402,1716586244798,-500.0,0.00033398,5]
[327896404,1716586244808,-180.64013204,0.00033398,5]
[327896406,1716586244817,-1106.13,0.00033398,5]
[327896408,1716586244829,-500.0,0.00033398,5]
[327896410,1716586244839,-644.61,0.00033399,5]
[327896412,1716586244848,-500.0,0.00033399,5]
[327896414,1716586244858,-500.0,0.00033399,5]
[327896416,1716586244868,-500.0,0.00033399,5]
[327896418,1716586244877,-465.62289543,0.00033399,5]
[327896420,1716586244887,-500.0,0.00033399,5]
[327896421,1716586244896,-500.0,0.00033399,5]
[327896422,1716586244906,-500.0,0.00033399,5]
[327896423,1716586244916,-500.0,0.00033399,5]
[327896424,1716586244926,-812.55,0.00033399,5]
[327896425,1716586244937,-500.0,0.00033399,5]
[327896426,1716586244947,-500.0,0.00033399,5]
[327896427,1716586244956,-486.0,0.000334,18]
[327896428,1716586244966,-973.0,0.000334,18]
[327896429,1716586244976,-344.0,0.000334,6]
[327896430,1716586244985,-150.0,0.000334,7]
[327896431,1716586244995,-193.50479953,0.00033412,2]
[327896432,1716586245005,-1603.10006197,0.00033412,2]
[327896433,1716586245014,-402.51276888,0.00033423,5]
[327896434,1716586245024,-653.01402305,0.00033423,4]
[327896435,1716586245034,-500.0,0.00033423,5]
[327896436,1716586245044,-562.55,0.00033424,5]
[327896437,1716586245053,-157.052506,0.00033448,40]
[327896438,1716586245064,-502586.88162469,0.00033459,30]
[327896439,1716586245074,-795.0,0.00033459,30]
[327896440,1716586245084,-1021.51235105,0.00033459,2]
[327896441,1716586245095,-500.0,0.00033464,5]
[327896442,1716586245106,-277.0,0.00033465,5]
[327896443,1716586245115,-364.75840661,0.00033465,2]
[327896445,1716586245126,-3058.94082905,0.00033465,4]
[327896447,1716586245135,-1008.61987589,0.00033465,4]
[327896449,1716586245145,-123697.86448915,0.00033465,2]
[327896464,1716586245256,-151962.46665362,0.00033465,2]
[327896466,1716586245269,-379.9422459,0.00033465,2]
[327896468,1716586245281,-1385.1838,0.00033465,2]
[327896471,1716586245297,-485.71662021,0.00033465,2]
[327896473,1716586245308,-459.03337979,0.00033465,2]
[327896475,1716586245323,-3091.35888834,0.00033465,2]
[327896478,1716586245335,-10021.01485332,0.00033465,2]
[327896602,1716586246421,-607.56054887,0.00031593,4]
[327896604,1716586246431,-21.76112361,0.00033465,2]
[327896625,1716586246623,-68932.99999999,0.00033465,2]
[327896633,1716586246696,-14663.25085921,0.00033465,2]
[327896641,1716586246767,-6947.84892045,0.00033465,2]
[327896643,1716586246779,-6911.3,0.00033465,2]
[327896646,1716586246793,-1378.806,0.00033465,2]
[327896770,1716587431684,-5567.88237454,0.00012799,2]
[327896771,1716587431699,-150.0,0.00012799,2]
[327896772,1716587431710,-150.0,0.00012799,2]
[327896773,1716587431721,-10510.08951519,0.000128,2]
[327896774,1716587431733,-2022.02811027,0.00012808,2]
[327896775,1716587431747,-4000.0,0.00012808,2]
[327896777,1716587431929,-499.2998041,0.00012808,2]
[327896794,1716587437766,-2936.26515035,0.00012808,2]
[327896795,1716587437776,-169.20242393,0.000129,2]
[327896796,1716587437785,-1067.85343268,0.000129,2]
[327896797,1716587437794,-596.78886786,0.000129,2]
[327896798,1716587437804,-172.60666666,0.000129,2]
[327896799,1716587437813,-3193.97241835,0.000129,2]
[327896800,1716587437823,-328.30888772,0.000129,2]
[327896801,1716587437832,-6766064.22496145,0.00013,2]
[327896802,1716587437844,-915118.82162968,0.00013,2]
[327896803,1716587437855,-2025.17395094,0.00013,2]
[327896804,1716587437868,-16251.08328166,0.00013,2]
[327896805,1716587437883,-6921.915,0.00013,2]
[327897033,1716587440379,-99596.25624702,0.00013,2]
[327897257,1716587442640,-6202.77607395,0.00013,2]
[327897332,1716587443330,-27653.57300027,0.00013,2]
[327897335,1716587443342,-2519.06588305,0.00013,2]
[327897420,1716587445799,-631.58287325,0.00013,2]
[327897421,1716587445811,-28809.37963119,0.00013,2]
[327897422,1716587445900,-9047.82466423,0.00013,2]
[327897515,1716588632047,-155.0,0.00010572,2]
[327897516,1716588632058,-155.0,0.00010573,2]
[327897517,1716588632069,-790.26530989,0.00010574,2]
[327897518,1716588632079,-574.63469011,0.00010575,2]
[327897519,1716588632091,-697.51224,0.00010575,2]
[327897520,1716588632102,-4295.73544443,0.00010575,2]
[327897521,1716588632112,-184.05,0.00010577,2]
[327897522,1716588632123,-701.953689,0.00011271,2]
[327897523,1716588632133,-155.33627281,0.00011698,2]
[327897524,1716588632143,-250.0,0.00012306,2]
[327897525,1716588632152,-1795.27,0.00012403,2]
[327897527,1716588632162,-150.0,0.00012471,2]
[327897528,1716588632171,-2057.38,0.00012472,2]
[327897530,1716588632180,-250.0,0.00012472,2]
[327897532,1716588632190,-380.70037141,0.00012822,2]
[327897533,1716588632200,-632.69558088,0.00012836,2]
[327897534,1716588632210,-184.05,0.00012841,2]
[327897535,1716588632220,-1027.4565,0.000129,2]
[327897536,1716588632229,-379.4439,0.000129,2]
[327897537,1716588632239,-733.86134199,0.000129,2]
[327897538,1716588632250,-266.13865801,0.000129,2]
[327897539,1716588632262,-568.69301216,0.000129,2]
[327897541,1716588632271,-1363.5854,0.000129,2]
[327897543,1716588632280,-172.60666666,0.000129,2]
[327897545,1716588632289,-323.53768347,0.000129,2]
[327897547,1716588632299,-417.24083802,0.0001299,2]
[327897548,1716588632308,-417.24083802,0.0001299,2]
[327897551,1716588632317,-417.24083802,0.0001299,2]
[327897553,1716588632326,-179.10227391,0.0001299,2]
[327897555,1716588632337,-165.70945579,0.0001299,2]
[327897557,1716588632346,-165.70945579,0.0001299,2]
[327897559,1716588632355,-165.70945579,0.0001299,2]
[327897560,1716588632364,-165.70945579,0.0001299,2]
[327897562,1716588632374,-165.70945579,0.0001299,2]
[327897565,1716588632384,-165.70945579,0.0001299,2]
[327897566,1716588632393,-165.70945579,0.0001299,2]
[327897568,1716588632402,-165.70945579,0.0001299,2]
[327897570,1716588632411,-165.70945579,0.0001299,2]
[327897573,1716588632420,-165.70945579,0.0001299,2]
[327897575,1716588632430,-165.70945579,0.0001299,2]
[327897576,1716588632439,-165.70945579,0.0001299,2]
[327897579,1716588632448,-165.70945579,0.0001299,2]
[327897580,1716588632457,-165.70945579,0.0001299,2]
[327897583,1716588632467,-165.70945579,0.0001299,2]
[327897585,1716588632475,-165.70945579,0.0001299,2]
[327897586,1716588632485,-165.70945579,0.0001299,2]
[327897589,1716588632494,-165.70945579,0.0001299,2]
[327897591,1716588632503,-165.70945579,0.0001299,2]
[327897593,1716588632513,-165.70945579,0.0001299,2]
[327897595,1716588632522,-165.70945579,0.0001299,2]
[327897597,1716588632531,-165.70945579,0.0001299,2]
[327897599,1716588632540,-165.70945579,0.0001299,2]
[327897600,1716588632550,-165.70945579,0.0001299,2]
[327897603,1716588632559,-165.70945579,0.0001299,2]
[327897605,1716588632568,-165.70945579,0.0001299,2]
[327897607,1716588632582,-165.70945579,0.0001299,2]
[327897609,1716588632591,-165.70945579,0.0001299,2]
[327897611,1716588632601,-165.70945579,0.0001299,2]
[327897613,1716588632610,-165.70945579,0.0001299,2]
[327897615,1716588632623,-165.70945579,0.0001299,2]
[327897617,1716588632632,-165.70945579,0.0001299,2]
[327897619,1716588632641,-165.70945579,0.0001299,2]
[327897621,1716588632652,-165.70945579,0.0001299,2]
[327897623,1716588632661,-165.70945579,0.0001299,2]
[327897625,1716588632672,-165.70945579,0.0001299,2]
[327897627,1716588632681,-165.70945579,0.0001299,2]
[327897629,1716588632690,-165.70945579,0.0001299,2]
[327897631,1716588632699,-165.70945579,0.0001299,2]
[327897633,1716588632708,-165.70945579,0.0001299,2]
[327897635,1716588632718,-165.70945579,0.0001299,2]
[327897636,1716588632727,-165.70945579,0.0001299,2]
[327897637,1716588632736,-165.70945579,0.0001299,2]
[327897638,1716588632746,-165.70945579,0.0001299,2]
[327897639,1716588632756,-165.70945579,0.0001299,2]
[327897640,1716588632765,-165.70945579,0.0001299,2]
[327897641,1716588632775,-165.70945579,0.0001299,2]
[327897642,1716588632784,-165.70945579,0.0001299,2]
[327897643,1716588632793,-165.70945579,0.0001299,2]
[327897644,1716588632802,-165.70945579,0.0001299,2]
[327897645,1716588632811,-165.70945579,0.0001299,2]
[327897646,1716588632820,-165.70945579,0.0001299,2]
[327897647,1716588632831,-165.70945579,0.0001299,2]
[327897648,1716588632840,-165.70945579,0.0001299,2]
[327897649,1716588632848,-165.70945579,0.0001299,2]
[327897651,1716588632858,-165.70945579,0.0001299,2]
[327897653,1716588632867,-165.70945579,0.0001299,2]
[327897655,1716588632876,-165.70945579,0.0001299,2]
[327897657,1716588632885,-165.70945579,0.0001299,2]
[327897659,1716588632895,-165.70945579,0.0001299,2]
[327897661,1716588632904,-165.70945579,0.0001299,2]
[327897663,1716588632913,-165.70945579,0.0001299,2]
[327897665,1716588632923,-165.70945579,0.0001299,2]
[327897667,1716588632932,-165.70945579,0.0001299,2]
[327897668,1716588632942,-165.70945579,0.0001299,2]
[327897669,1716588632951,-165.70945579,0.0001299,2]
[327897670,1716588632960,-165.70945579,0.0001299,2]
[327897671,1716588632970,-165.70945579,0.0001299,2]
[327897672,1716588632980,-165.70945579,0.0001299,2]
[327897673,1716588632989,-165.70945579,0.0001299,2]
[327897674,1716588632999,-165.70945579,0.0001299,2]
[327897675,1716588633008,-165.70945579,0.0001299,2]
[327897677,1716588633017,-155.0,0.00012998,2]
[327897679,1716588633026,-623.795218,0.00012998,2]
[327897680,1716588633035,-4430.75681299,0.00012998,2]
[327897681,1716588633044,-361.22735375,0.00012998,2]
[327897682,1716588633054,-1214.89267019,0.00012998,2]
[327897683,1716588633063,-5276.18337802,0.00012998,2]
[327897684,1716588633072,-914.63856963,0.00012998,2]
[327897685,1716588633081,-155.0,0.00012998,2]
[327897686,1716588633090,-1248.98663554,0.00012999,2]
[327897687,1716588633099,-86605.18495897,0.00013,2]
[327897688,1716588633112,-26202.05758684,0.00013,2]
[327897695,1716588637894,-165.70945579,0.0001299,2]
[327897696,1716588637904,-165.70945579,0.0001299,2]
[327897697,1716588637914,-165.70945579,0.0001299,2]
[327897698,1716588637924,-165.70945579,0.0001299,2]
[327897699,1716588637934,-165.70945579,0.0001299,2]
[327897700,1716588637944,-165.70945579,0.0001299,2]
[327897701,1716588637953,-165.70945579,0.0001299,2]
[327897702,1716588637963,-165.70945579,0.0001299,2]
[327897703,1716588637972,-165.70945579,0.0001299,2]
[327897704,1716588637982,-165.70945579,0.0001299,2]
[327897705,1716588637992,-165.70945579,0.0001299,2]
[327897706,1716588638002,-165.70945579,0.0001299,2]
[327897707,1716588638012,-165.70945579,0.0001299,2]
[327897708,1716588638021,-165.70945579,0.0001299,2]
[327897709,1716588638032,-165.70945579,0.0001299,2]
[327897710,1716588638041,-165.70945579,0.0001299,2]
[327897711,1716588638051,-165.70945579,0.0001299,2]
[327897712,1716588638061,-165.70945579,0.0001299,2]
[327897713,1716588638071,-165.70945579,0.0001299,2]
[327897714,1716588638080,-34.75302981,0.0001299,2]
[327897715,1716588638094,-130.95642598,0.0001299,2]
[327897716,1716588638103,-165.70945579,0.0001299,2]
[327897717,1716588638113,-165.70945579,0.0001299,2]
[327897718,1716588638123,-165.70945579,0.0001299,2]
[327897719,1716588638133,-165.70945579,0.0001299,2]
[327897720,1716588638142,-165.70945579,0.0001299,2]
[327897721,1716588638152,-165.70945579,0.0001299,2]
[327897722,1716588638162,-165.70945579,0.0001299,2]
[327897723,1716588638171,-165.70945579,0.0001299,2]
[327897724,1716588638181,-299965.4782425,0.00013,2]
[327897725,1716588638190,-613696.71131488,0.00013,2]
[327897726,1716588638205,-4869.2735,0.00013,2]
[327897970,1716588640797,-2206.1555444,0.00013,2]
[327897973,1716588640808,-573.37954002,0.00013,2]
[327897975,1716588640820,-2119.53892551,0.00013,2]
[327897977,1716588640831,-530.421667,0.00013,2]
[327897988,1716588640921,-17058.41804389,0.00013,2]
[327897990,1716588640933,-2377.76070124,0.00013,2]
[327897992,1716588640944,-371.7031842,0.00013,2]
[327898091,1716588641870,-2328.87606084,0.00013,2]
[327898093,1716588641881,-6364.39687151,0.00013,2]
[327898095,1716588641893,-29389.57808853,0.00013,2]
[327898290,1716588643777,-1655.93985902,0.00013,2]
[327898294,1716588643868,-1226.99999763,0.00013,2]
[327898296,1716588643880,-1268.2984146,0.00013,2]
[327898298,1716588643892,-1204.17105637,0.00013,2]
[327898300,1716588643903,-760.45404599,0.00013,2]
[327898304,1716588643925,-596.48775975,0.00013,2]
[327898306,1716588643939,-658.35,0.00013,2]
[327898317,1716588644034,-1295.82764162,0.00013,2]
[327898319,1716588644046,-5216.15228117,0.00013,2]
[327898321,1716588644057,-132228.62256245,0.00013,2]
[327898324,1716588644069,-451.5,0.00013,2]
[327898499,1716588645809,-789.10776726,0.00012999,2]
[327898501,1716588645818,-296.73263169,0.00012999,2]
[327898503,1716588645827,-1030.47210778,0.00013,2]
[327898514,1716588645920,-3483.97404,0.00013,2]
[327898527,1716588646035,-1186.53246686,0.00013,2]
[327898540,1716588646155,-10443.91839523,0.00013,2]
[327898541,1716588646167,-988.0,0.00013,2]
[327898623,1716588679841,7825.64995139,0.00031,120]
[327898677,1716589832104,-325.10674615,0.00011138,2]
[327898678,1716589832114,-306.53561288,0.00011138,2]
[327898679,1716589832124,-2188.02281065,0.00011139,2]
[327898680,1716589832134,-234.40611588,0.00011139,2]
[327898681,1716589832144,-784.30875841,0.0001114,2]
[327898682,1716589832156,-152.01048309,0.00011141,2]
[327898683,1716589832235,-2.98951691,0.00011141,2]
[327898684,1716589832244,-155.0,0.00011142,2]
[327898685,1716589832254,-155.0,0.00011142,2]
[327898686,1716589832263,-57.06854509,0.00011142,2]
[327898687,1716589832275,-339.04706187,0.00011142,2]
[327898699,1716589838000,-155.0,0.00011137,2]
[327898701,1716589838010,-256.70999974,0.00011142,2]
[327898702,1716589838281,-4915.05676784,0.00011142,2]
[327898703,1716589838290,-819.045632,0.00011143,2]
[327898704,1716589838300,-162.76290291,0.00011199,2]
[327898705,1716589838310,-235.4,0.0001134,2]
[327898706,1716589838319,-1598.93,0.00012615,2]
[327898707,1716589838328,-380.70037141,0.00012685,2]
[327898708,1716589838339,-1566.03064875,0.00012814,2]
[327898709,1716589838349,-636.88647009,0.00012895,2]
[327898710,1716589838359,-1630.02488131,0.00012897,2]
[327898711,1716589838369,-1196.17,0.00012937,2]
[327898712,1716589838378,-250.0,0.00012953,2]
[327898713,1716589838387,-55510.99232569,0.00013,2]
[327898714,1716589838400,-739.9595465,0.00013,2]
[327898715,1716589838412,-95831.015037,0.00013,2]
[327898716,1716589838421,-400.0,0.00013166,2]
[327898717,1716589838430,-250.0,0.00013215,2]
[327898718,1716589838439,-8365.07,0.0001329,2]
[327898719,1716589838448,-474.3,0.00013331,2]
[327898720,1716589838458,-600.0,0.00013466,2]
[327898721,1716589838467,-203.81,0.00013484,2]
[327898722,1716589838477,-189.15,0.00013509,2]
[327898723,1716589838486,-203.81,0.00013521,2]
[327898724,1716589838495,-203.81,0.00013558,2]
[327898725,1716589838504,-203.81,0.00013594,2]
[327898726,1716589838514,-235.4,0.00013603,2]
[327898728,1716589838523,-203.81,0.00013631,2]
[327898730,1716589838533,-203.81,0.00013668,2]
[327898732,1716589838543,-203.81,0.00013705,2]
[327898734,1716589838552,-203.81,0.00013742,2]
[327898736,1716589838561,-203.81,0.00013779,2]
[327898738,1716589838571,-203.81,0.00013816,2]
[327898740,1716589838580,-203.81,0.00013853,2]
[327898742,1716589838589,-203.81,0.0001389,2]
[327898744,1716589838598,-203.81,0.00013927,2]
[327898746,1716589838607,-203.81,0.00013964,2]
[327898748,1716589838617,-165.33,0.00013973,2]
[327898750,1716589838626,-155.16,0.00013973,2]
[327898752,1716589838636,-151.99,0.00013973,2]
[327898754,1716589838647,-150.88,0.00013973,2]
[327898756,1716589838657,-151.73,0.00013973,2]
[327898758,1716589838666,-203.81,0.00014001,2]
[327898760,1716589838675,-203.81,0.00014038,2]
[327898762,1716589838684,-203.81,0.00014075,2]
[327898764,1716589838693,-203.81,0.00014112,2]
[327898766,1716589838703,-203.81,0.00014149,2]
[327898769,1716589838712,-203.81,0.00014186,2]
[327898770,1716589838722,-400.0,0.00014812,2]
[327898773,1716589838731,-600.0,0.00015149,2]
[327898774,1716589838740,-1196.17,0.00015677,2]
[327898776,1716589838750,-235.4,0.00015867,2]
[327898778,1716589838759,-400.0,0.00016457,2]
[327898781,1716589838769,-600.0,0.00016833,2]
[327898783,1716589838779,-2500.0,0.00017159,2]
[327898785,1716589838788,-38409.65943909,0.00017259,2]
[327898786,1716589838797,-400.0,0.00018103,2]
[327898788,1716589838806,-235.4,0.00018131,2]
[327898791,1716589838816,-1196.17,0.00018416,2]
[327898793,1716589838826,-600.0,0.00018516,2]
[327898795,1716589838836,-400.0,0.00019749,2]
[327898797,1716589838845,-1038.62893244,0.0002,3]
[327898799,1716589838854,-5185.19650813,0.0002,2]
[327898801,1716589838864,-600.0,0.00020199,2]
[327898803,1716589838873,-5000.0,0.00020309,2]
[327898805,1716589838882,-5000.0,0.00020309,2]
[327898806,1716589838891,-235.4,0.00020395,2]
[327898808,1716589838901,-732.0,0.000211,3]
[327898811,1716589838910,-6773.71234994,0.000219,2]
[327898812,1716589838919,-177.93,0.00021918,2]